bitfinex-derivatives/quotes_ETHF0:USTF0_20250830
["timestamp","ask_amount","ask_price","bid_price","bid_amount"]
[1756561537164,0.20797143,4336.2,4335.0,0.3055]
[1756561537454,0.20797143,4336.1,4336.0,0.5069]
[1756561537655,0.20797143,4336.1,4335.5,1.35766918]
[1756561537963,0.20797143,4336.1,4334.5,0.00412001]
[1756561537964,3.2078,4335.7,4335.4,0.3055]
[1756561538151,0.21211797,4335.6,4335.4,1.35766918]
[1756561538355,0.21211797,4335.6,4335.5,0.5069]
[1756561538556,3.2078,4336.3,4335.5,0.2014]
[1756561538757,3.2078,4336.3,4335.2,0.245]
[1756561538758,3.2078,4336.3,4336.2,1.86456918]
[1756561538959,3.2078,4336.3,4336.2,0.5069]
[1756561538960,3.41961731,4336.3,4336.2,0.5069]
[1756561539356,7.41961731,4336.3,4335.6,3.5133]
[1756561539555,0.21181731,4336.2,4336.1,0.2014]
[1756561539856,0.21181731,4336.2,4335.1,0.245]
[1756561539857,3.2078,4336.8,4336.7,0.5069]
[1756561540065,3.2078,4337.3,4336.8,0.3055]
[1756561540262,3.2078,4338.1,4337.3,0.3055]
[1756561540454,3.2078,4338.1,4337.9,0.5069]
[1756561540659,3.2078,4338.8,4337.9,0.4865]
[1756561540866,3.2078,4338.8,4338.0,0.3055]
[1756561541262,0.21171322,4338.7,4338.0,0.536]
[1756561541567,3.2078,4338.8,4338.1,0.3055]
[1756561541764,3.2078,4338.8,4332.9,10.38445]
[1756561541765,4.4755,4338.7,4332.9,10.38445]
[1756561541967,3.2078,4337.2,4336.3,3.2078]
[1756561542164,3.2078,4337.2,4335.9,0.3055]
[1756561542165,0.1156,4337.0,4335.9,0.3055]
[1756561542365,0.20089484,4336.9,4335.9,0.3055]
[1756561542565,0.20089484,4336.8,4335.9,0.3055]
[1756561542767,0.1156,4337.0,4335.9,0.3055]
[1756561542966,0.20076239,4336.9,4335.9,0.3055]
[1756561543170,3.2078,4337.2,4335.9,0.3055]
[1756561543364,0.20068938,4337.1,4335.9,0.3055]
[1756561543564,0.20068938,4337.0,4335.9,0.3055]
[1756561543764,3.2078,4337.2,4335.9,0.3055]
[1756561543967,0.20067101,4337.1,4336.1,0.3055]
[1756561544270,0.20067101,4337.0,4336.1,0.3055]
[1756561544568,3.2078,4337.2,4336.1,0.3055]
[1756561544760,0.2005983,4337.1,4336.1,0.3055]
[1756561544964,0.3161983,4337.0,4336.2,0.251]
[1756561545166,8.1020177,4343.4,4335.5,0.3055]
[1756561545167,3.2078,4336.6,4335.5,0.3055]
[1756561545367,0.31617391,4336.5,4335.5,0.3055]
[1756561545667,3.3234,4336.1,4335.5,0.3055]
[1756561545962,3.2078,4336.1,4335.5,0.3055]
[1756561546167,0.1156,4336.0,4335.3,0.3055]
[1756561546760,0.1156,4336.0,4335.4,0.252]
[1756561546963,3.2078,4336.1,4335.5,0.3055]
[1756561547867,3.2078,4336.6,4336.1,0.3055]
[1756561548164,0.1156,4337.1,4336.2,0.252]
[1756561548365,0.1156,4337.1,4334.7,40.8]
[1756561548366,3.2078,4336.3,4335.4,0.3055]
[1756561548563,0.1156,4336.2,4335.7,3.2078]
[1756561548763,0.1156,4336.2,4335.6,0.253]
[1756561549065,0.20050322,4336.1,4335.6,0.5585]
[1756561549271,3.2078,4336.3,4335.7,0.3055]
[1756561550371,1.22648893,4337.8,4334.7,0.3055]
[1756561550372,0.1156,4335.7,4334.7,0.3055]
[1756561550567,3.2078,4335.3,4334.7,0.3055]
[1756561550768,0.1156,4335.1,4334.5,0.30962001]
[1756561551574,0.1156,4335.1,4334.5,0.00412001]
[1756561551575,0.1156,4334.7,4334.5,0.00412001]
[1756561551762,0.1156,4334.6,4334.5,0.00412001]
[1756561552169,4.1156,4334.6,4334.5,0.00412001]
[1756561552467,4.3160488,4334.6,4334.5,0.00412001]
[1756561552868,0.1114,4334.5,4334.1,1.56346893]
[1756561553167,3.2078,4334.2,4334.1,1.04164118]
[1756561553374,4.26623626,4334.2,4334.1,1.04164118]
[1756561553565,0.2004488,4334.2,4334.1,1.34714118]
[1756561553767,3.2078,4334.7,4334.1,1.34714118]
[1756561553964,0.20027059,4334.6,4334.2,0.3055]
[1756561554164,0.20027059,4334.5,4334.1,1.04164118]
[1756561554364,0.20022645,4334.4,4334.1,1.04164118]
[1756561554570,3.2078,4334.7,4334.1,1.04164118]
[1756561554774,0.20023013,4334.6,4334.1,1.04164118]
[1756561554969,0.20023013,4334.5,4334.1,1.34714118]
[1756561555167,0.20023013,4334.4,4334.1,1.34714118]
[1756561555367,3.2078,4334.7,4334.1,1.04164118]
[1756561555571,0.20020556,4334.6,4334.2,0.3055]
[1756561555770,0.1153,4335.1,4334.3,0.3055]
[1756561555972,0.20019961,4335.0,4334.3,0.3055]
[1756561556172,0.20019961,4334.9,4334.3,0.3055]
[1756561556373,0.1153,4335.1,4334.3,0.3055]
[1756561556374,0.20019961,4334.8,4334.3,0.3055]
[1756561556574,0.1153,4335.1,4334.3,0.3055]
[1756561556777,0.20026353,4335.0,4334.3,0.3055]
[1756561556972,0.20026353,4334.9,4334.3,0.3055]
[1756561557169,0.20026353,4334.8,4334.2,3.2078]
[1756561557373,0.20026353,4334.7,4334.2,3.2078]
[1756561557572,0.1153,4335.1,4334.3,0.3055]
[1756561557773,0.80339658,4335.0,4334.3,0.3055]
[1756561557975,0.20035772,4334.9,4334.3,0.3055]
[1756561558165,0.1153,4335.1,4334.3,0.3055]
[1756561558166,0.20035772,4334.8,4334.3,0.3055]
[1756561558370,0.20035772,4334.7,4334.2,3.2078]
[1756561558571,0.20035772,4334.6,4334.3,0.3055]
[1756561558772,0.1153,4335.1,4334.3,0.3055]
[1756561558978,0.80391965,4335.0,4334.3,0.3055]
[1756561559178,0.20064295,4334.9,4334.3,0.3055]
[1756561559478,4.01239199,4334.8,4334.2,0.3055]
[1756561559680,0.20064295,4334.7,4334.2,0.3055]
[1756561560078,0.20064295,4334.7,4334.1,1.29664118]
[1756561560275,0.20064295,4334.7,4334.6,0.5069]
[1756561560478,3.2078,4335.8,4335.0,0.2014]
[1756561560670,3.2078,4335.8,4335.1,0.254]
[1756561560871,3.2078,4336.3,4335.2,4.0]
[1756561561071,3.2078,4336.3,4335.6,0.41511]
[1756561561277,3.2078,4336.3,4335.7,0.254]
[1756561561781,0.91390323,4336.2,4335.3,41.054]
[1756561562079,0.60560323,4336.1,4335.5,3.2078]
[1756561562277,0.60618696,4336.0,4335.5,3.2078]
[1756561562479,0.3083,4336.2,4335.6,0.254]
[1756561562676,0.60628346,4336.1,4335.6,0.254]
[1756561562873,0.60628346,4336.0,4335.7,0.3055]
[1756561563073,0.60628346,4335.9,4335.7,0.3055]
[1756561563279,0.60628346,4335.8,4335.7,0.3055]
[1756561563778,3.2078,4336.8,4336.0,0.41508]
[1756561564077,0.60716256,4336.7,4336.3,0.3055]
[1756561564278,0.60819733,4336.6,4336.4,40.8]
[1756561564481,3.2078,4337.3,4336.7,0.41501]
[1756561564682,0.60823686,4337.2,4336.9,0.3055]
[1756561564883,0.60823686,4337.1,4336.9,0.3055]
[1756561565081,3.2078,4337.3,4337.1,0.3055]
[1756561565280,3.2078,4337.8,4337.2,0.3055]
[1756561565482,1.22648893,4338.6,4337.0,40.8]
[1756561565483,3.2078,4338.3,4337.6,3.2078]
[1756561565676,0.3083,4338.8,4337.8,0.3055]
[1756561565982,3.2078,4338.9,4338.0,0.3055]
[1756561566187,3.2078,4338.9,4338.1,0.254]
[1756561566392,3.2078,4338.9,4338.2,0.3055]
[1756561566791,3.2078,4338.9,4337.5,0.3055]
[1756561566792,3.2078,4338.7,4337.5,0.3055]
[1756561566989,0.3083,4338.0,4337.2,0.5605]
[1756561567488,3.2078,4338.1,4337.6,3.2078]
[1756561567691,0.3015,4338.0,4337.7,0.5576]
[1756561568097,0.3015,4338.6,4337.8,0.3026]
[1756561568794,0.3015,4338.6,4337.7,0.255]
[1756561568992,0.3015,4338.7,4337.8,0.254]
[1756561569191,0.3015,4338.2,4337.2,0.254]
[1756561569391,0.3015,4337.7,4337.2,0.254]
[1756561570889,3.2078,4337.8,4337.2,0.254]
[1756561571085,0.3015,4337.7,4337.2,0.254]
[1756561571288,3.2078,4337.8,4337.2,0.254]
[1756561571490,3.2078,4337.3,4336.1,0.3026]
[1756561571686,0.3015,4337.2,4336.2,0.255]
[1756561572286,0.3015,4337.2,4336.0,3.2078]
[1756561572491,0.3015,4336.7,4336.1,0.255]
[1756561572696,3.2078,4336.8,4336.1,0.255]
[1756561572697,0.19031704,4336.6,4336.1,0.255]
[1756561572899,0.3015,4336.7,4336.1,0.255]
[1756561573096,0.3015,4336.5,4336.1,0.255]
[1756561573296,3.2078,4336.8,4336.2,0.5576]
[1756561573491,0.19031518,4336.7,4336.2,0.5576]
[1756561573694,0.19031518,4336.6,4336.2,0.5576]
[1756561573899,0.19029828,4336.5,4335.5,3.4628]
[1756561574101,0.3015,4336.3,4335.5,3.4628]
[1756561574296,0.19030963,4336.2,4335.5,3.4628]
[1756561574492,3.2078,4336.8,4336.1,3.2078]
[1756561574696,3.2078,4336.8,4336.3,0.41505]
[1756561574995,3.2078,4336.8,4336.3,0.3026]
[1756561575998,3.2078,4337.3,4336.3,0.3026]
[1756561576198,3.2078,4337.3,4336.5,0.3026]
[1756561576501,4.43428893,4339.3,4337.5,0.41493]
[1756561576795,0.19029455,4339.2,4337.8,0.3026]
[1756561576999,0.49179455,4339.1,4337.8,0.3026]
[1756561577193,0.19029455,4339.0,4337.9,40.8]
[1756561577393,0.3015,4338.8,4337.9,40.8]
[1756561577598,0.19029455,4338.7,4337.9,40.8]
[1756561577804,0.19029455,4338.6,4338.0,0.5576]
[1756561578100,0.19029455,4338.5,4338.0,0.255]
[1756561578289,3.2078,4338.7,4338.1,0.3026]
[1756561578494,0.19014736,4338.6,4338.1,0.3026]
[1756561578796,0.3015,4338.6,4338.1,0.3026]
[1756561578989,3.2078,4338.7,4338.0,0.255]
[1756561579198,3.2078,4338.7,4338.1,0.3026]
[1756561580295,3.2078,4338.7,4338.1,0.71747]
[1756561580500,0.3015,4339.7,4338.8,0.4148]
[1756561580702,0.3015,4339.7,4339.1,0.3026]
[1756561581002,3.2078,4339.9,4339.3,0.3026]
[1756561581197,3.2078,4339.9,4339.4,41.055]
[1756561581595,3.2078,4339.9,4339.6,0.3026]
[1756561581796,0.1,4340.2,4339.8,0.3026]
[1756561581996,0.1,4340.2,4340.1,0.3026]
[1756561583602,0.1,4340.2,4340.1,4.3026]
[1756561584207,0.1,4340.2,4340.1,45.1026]
[1756561584498,0.4015,4340.2,4340.1,40.8]
[1756561584700,0.4015,4340.2,4340.1,0.254]
[1756561585004,0.4015,4340.2,4340.1,0.5566]
[1756561585198,0.4015,4340.2,4340.1,0.254]
[1756561585797,0.4015,4340.2,4339.8,40.8]
[1756561585798,0.3015,4340.1,4339.8,40.8]
[1756561585999,0.1,4340.2,4339.6,3.5104]
[1756561586305,0.3015,4340.1,4339.7,0.254]
[1756561589307,0.1,4340.2,4339.7,0.254]
[1756561589502,0.3015,4340.1,4339.7,0.254]
[1756561589904,0.1,4340.2,4339.7,0.254]
[1756561590300,0.4953,4339.8,4339.7,0.254]
[1756561590809,0.3015,4340.1,4339.8,0.3026]
[1756561591009,0.3015,4340.1,4339.7,0.254]
[1756561591208,0.1,4340.2,4339.8,0.3026]
[1756561591408,0.1,4340.2,4339.7,0.254]
[1756561591612,0.1,4340.2,4340.1,3.7049]
[1756561591809,0.1,4340.2,4340.1,3.9579]
[1756561592011,0.1,4340.2,4340.1,0.7501]
[1756561593906,0.1,4340.2,4340.1,45.5501]
[1756561594308,0.1,4340.2,4340.1,45.2971]
[1756561594507,0.4015,4340.2,4340.1,40.9945]
[1756561594703,0.5953,4340.2,4340.1,0.253]
[1756561595212,0.3015,4341.4,4340.1,45.28341]
[1756561595408,0.3015,4342.1,4341.3,0.4199]
[1756561595608,0.19057117,4342.0,4341.4,0.253]
[1756561595809,0.3015,4341.8,4341.5,0.2254]
[1756561596015,3.2078,4342.2,4341.4,0.253]
[1756561596315,0.19080494,4342.1,4341.5,0.2254]
[1756561596616,0.1938,4341.7,4341.2,3.2078]
[1756561596811,0.4953,4341.4,4341.3,0.6729]
[1756561597116,3.2078,4342.2,4341.3,0.66757]
[1756561597313,0.3119,4342.1,4341.4,0.2258]
[1756561597611,3.2078,4342.7,4341.2,3.6244]
[1756561597814,0.19068477,4342.6,4341.5,0.4438]
[1756561598017,0.19068477,4342.5,4341.5,0.4438]
[1756561598316,0.3119,4342.3,4341.5,0.4438]
[1756561598521,0.3119,4342.6,4341.5,0.4438]
[1756561598705,0.19059456,4342.5,4341.5,0.4438]
[1756561598907,0.3119,4342.3,4341.5,0.4438]
[1756561599314,0.3119,4342.3,4341.6,0.2264]
[1756561599517,0.3119,4342.3,4342.2,0.4172]
[1756561599815,0.5098,4342.3,4342.2,0.6702]
[1756561600016,0.5098,4342.3,4342.2,0.4438]
[1756561600712,0.5098,4342.3,4342.2,0.253]
[1756561601016,0.38842044,4342.3,4342.2,0.253]
[1756561601218,4.38842714,4342.3,4342.2,0.253]
[1756561601509,4.38842714,4342.3,4341.2,3.2078]
[1756561601710,3.71022714,4342.2,4341.3,41.053]
[1756561602016,0.19052714,4342.1,4341.3,41.053]
[1756561602221,0.3119,4341.9,4341.3,41.053]
[1756561602520,3.5197,4342.2,4341.3,41.46757]
[1756561602815,3.5197,4342.2,4342.1,0.4172]
[1756561603015,3.5197,4342.2,4342.1,0.6692]
[1756561603216,3.71054573,4342.2,4342.1,0.6692]
[1756561604118,3.39864573,4342.2,4342.1,0.6692]
[1756561604307,3.90844573,4342.2,4341.6,0.2264]
[1756561604514,0.5098,4341.8,4341.7,0.252]
[1756561604708,0.5098,4341.8,4341.3,40.8]
[1756561604709,0.5098,4341.4,4341.2,3.2078]
[1756561604916,0.5098,4341.3,4341.2,3.2078]
[1756561605113,0.5098,4341.3,4341.2,3.4598]
[1756561605314,0.70102345,4341.3,4341.2,3.4598]
[1756561605720,0.70102345,4341.3,4341.2,3.2078]
[1756561606016,0.70102345,4341.3,4341.2,3.4598]
[1756561606620,0.992596,4341.3,4341.2,0.252]
[1756561607217,1.304496,4341.3,4341.2,0.252]
[1756561607521,0.5098,4340.5,4340.4,0.252]
[1756561607716,0.70102345,4340.5,4340.4,0.252]
[1756561607918,1.30476497,4340.5,4340.4,0.252]
[1756561609313,0.79496497,4340.5,4340.4,0.6692]
[1756561610819,0.60374152,4340.5,4340.4,0.6692]
[1756561611119,0.79563381,4340.5,4340.4,0.6692]
[1756561612323,0.79563381,4340.5,4340.4,4.6692]
[1756561612522,0.19189229,4340.5,4340.4,5.08386]
[1756561613424,0.19189229,4340.5,4340.4,45.4692]
[1756561614025,0.19189229,4340.5,4340.4,0.4418]
[1756561614026,0.70169229,4340.5,4340.4,0.4418]
[1756561614415,0.70169229,4340.5,4340.4,0.6682]
[1756561614416,0.19189229,4340.5,4340.4,0.6682]
[1756561614618,0.81421123,4341.8,4341.7,0.41454]
[1756561614927,0.3119,4342.9,4341.8,0.41452]
[1756561615131,0.3119,4342.5,4342.0,0.4145]
[1756561615426,3.2078,4343.3,4341.9,41.052]
[1756561615427,0.0804,4342.8,4342.2,3.2078]
[1756561615620,0.0804,4342.8,4342.3,0.252]
[1756561615821,0.3119,4342.7,4342.3,0.252]
[1756561616119,0.0804,4342.7,4342.4,0.30627203]
[1756561616319,0.1979,4342.6,4342.5,0.55727203]
[1756561616522,0.3119,4343.4,4342.5,0.55727203]
[1756561616719,3.2078,4343.8,4342.8,3.62222]
[1756561616923,3.2078,4343.8,4342.9,0.55727203]
[1756561617123,3.2078,4343.8,4343.0,0.30627203]
[1756561617324,0.3119,4343.7,4343.1,0.30627203]
[1756561617621,0.5098,4343.3,4343.2,0.252]
[1756561618127,0.2783,4343.3,4342.8,3.2078]
[1756561618326,0.0804,4343.0,4342.9,0.53897234]
[1756561618523,3.2078,4343.8,4342.9,0.53897234]
[1756561618726,0.5902,4343.1,4343.0,0.252]
[1756561619033,0.5902,4343.1,4343.0,41.052]
[1756561619330,0.5098,4343.1,4343.0,0.252]
[1756561620333,0.3119,4343.0,4342.8,3.2078]
[1756561620521,0.5098,4343.0,4342.9,0.252]
[1756561620726,0.0804,4343.0,4342.9,0.252]
[1756561620930,3.2078,4343.8,4342.9,4.252]
[1756561621234,3.2078,4343.8,4343.0,0.41441]
[1756561622131,0.3119,4343.7,4342.9,0.252]
[1756561622336,0.3119,4343.7,4342.9,0.66642]
[1756561622523,0.3119,4344.2,4343.4,3.62217]
[1756561622726,0.3119,4343.6,4343.5,0.252]
[1756561622928,0.3119,4344.2,4343.5,0.252]
[1756561623432,0.0804,4344.2,4343.6,40.8]
[1756561623632,0.0804,4344.2,4343.7,0.251]
[1756561624029,0.3119,4344.1,4343.7,0.251]
[1756561624731,0.0804,4344.2,4343.7,0.251]
[1756561624924,0.3119,4344.1,4343.7,0.251]
[1756561625324,0.0804,4344.1,4343.7,0.251]
[1756561625533,3.2078,4344.8,4344.1,0.4143]
[1756561625732,3.2078,4344.8,4344.2,0.66529]
[1756561625933,0.3119,4344.6,4344.2,0.251]
[1756561626229,0.3119,4344.7,4344.3,0.251]
[1756561626433,0.0804,4344.2,4344.0,3.2078]
[1756561626734,3.2078,4344.8,4344.1,0.251]
[1756561626735,0.3119,4344.7,4344.1,0.251]
[1756561627033,3.2078,4344.8,4343.6,40.8]
[1756561627034,0.2783,4344.1,4343.6,40.8]
[1756561627237,0.2826,4344.7,4343.7,0.251]
[1756561627532,0.2826,4343.9,4343.7,0.251]
[1756561629132,0.2826,4344.7,4343.7,0.251]
[1756561629329,0.363,4344.0,4343.8,0.251]
[1756561630139,0.2826,4344.9,4344.0,0.41431]
[1756561630335,0.2826,4344.4,4343.8,3.2078]
[1756561630530,0.2826,4344.4,4343.9,0.251]
[1756561630836,0.4887,4344.1,4344.0,0.251]
[1756561631036,0.2865,4344.1,4344.0,0.251]
[1756561631632,0.4887,4344.1,4344.0,0.251]
[1756561631932,0.2826,4344.7,4344.0,0.251]
[1756561632136,0.2826,4344.4,4344.0,0.251]
[1756561632439,0.2061,4344.2,4344.1,0.251]
[1756561632733,0.0804,4344.1,4343.6,40.8]
[1756561632934,0.2826,4344.7,4343.7,0.251]
[1756561633134,0.0804,4344.2,4343.7,0.251]
[1756561633336,0.2826,4344.1,4343.8,3.2078]
[1756561633838,0.0804,4344.2,4343.8,3.2078]
[1756561634033,0.2826,4344.6,4343.8,3.2078]
[1756561634338,227.987,4371.3,4343.7,0.251]
[1756561634339,0.2826,4345.2,4344.4,3.2078]
[1756561634536,3.2078,4345.3,4344.7,0.41425]
[1756561634831,3.2078,4345.3,4344.8,41.051]
[1756561634832,3.5708,4345.3,4344.8,41.051]
[1756561635239,0.0804,4345.3,4344.9,3.62203]
[1756561636238,0.0804,4345.3,4344.9,3.2078]
[1756561636835,0.5691,4345.0,4344.9,3.2078]
[1756561637042,0.363,4345.0,4344.9,3.4588]
[1756561637339,0.2826,4345.5,4344.9,3.4588]
[1756561637541,0.0804,4345.3,4344.9,3.4588]
[1756561637733,0.2826,4345.5,4344.9,3.4588]
[1756561638630,0.2826,4345.8,4345.0,0.251]
[1756561638838,0.2826,4345.3,4345.0,0.251]
[1756561639236,0.2826,4345.7,4345.0,0.251]
[1756561639438,0.0804,4345.4,4345.0,0.251]
[1756561641139,0.0804,4345.4,4344.9,3.2078]
[1756561641140,0.4887,4345.0,4344.9,3.2078]
[1756561641339,0.2826,4344.9,4344.8,33.16]
[1756561641640,0.2826,4344.9,4344.8,33.3296]
[1756561643945,0.2061,4344.4,4343.8,3.2078]
[1756561644148,0.4887,4344.0,4343.9,0.25]
[1756561644448,3.2078,4344.9,4343.9,0.25]
[1756561644449,0.2826,4344.8,4343.9,0.25]
[1756561645038,3.2078,4345.1,4343.8,3.2078]
[1756561645351,0.2061,4344.0,4343.9,0.25]
[1756561645542,0.4887,4344.0,4343.9,0.25]
[1756561645846,0.2826,4345.0,4343.9,0.66433]
[1756561646046,0.2826,4345.0,4344.4,3.2078]
[1756561646242,0.2061,4344.6,4344.5,0.25]
[1756561646436,0.2826,4344.5,4343.9,3.2078]
[1756561646641,0.2826,4345.3,4344.0,0.25]
[1756561646846,0.51277,4345.3,4344.0,0.25]
[1756561647148,0.51277,4345.3,4344.0,41.05]
[1756561647348,3.2078,4345.4,4343.9,3.2078]
[1756561647349,0.2061,4344.1,4343.9,3.2078]
[1756561647540,0.25,4346.2,4343.4,33.154]
[1756561647541,0.4887,4343.5,4343.4,33.154]
[1756561647740,0.4887,4343.5,4343.4,33.404]
[1756561647948,0.4887,4343.5,4343.4,74.204]
[1756561648443,0.4887,4343.5,4343.4,33.404]
[1756561648648,0.4887,4343.5,4343.4,33.154]
[1756561648848,3.2078,4344.1,4343.4,33.404]
[1756561649051,0.2826,4344.5,4343.5,3.2078]
[1756561649346,0.2826,4344.5,4343.6,0.25]
[1756561649850,0.2826,4345.0,4344.3,3.2078]
[1756561650046,0.2826,4345.0,4344.4,0.25]
[1756561650748,3.2078,4345.1,4344.5,0.25]
[1756561650749,0.2061,4344.6,4344.5,0.25]
[1756561650953,0.4887,4344.6,4344.5,0.25]
[1756561651849,3.4904,4345.1,4344.5,0.25]
[1756561652246,0.4887,4344.6,4343.8,3.2078]
[1756561652447,0.4887,4344.6,4343.9,0.25]
[1756561652658,0.4887,4344.6,4344.0,40.8]
[1756561653254,0.2826,4344.5,4344.4,3.2078]
[1756561653456,0.2826,4344.5,4344.4,3.4578]
[1756561653649,0.2826,4344.5,4344.4,0.25]
[1756561655551,0.2826,4345.0,4344.4,0.25]
[1756561655749,0.2826,4345.0,4344.4,3.4578]
[1756561656163,0.4887,4344.5,4344.4,3.4578]
[1756561656352,0.2826,4344.4,4344.0,40.8]
[1756561656551,0.2826,4344.3,4344.1,0.249]
[1756561656751,3.2078,4345.1,4344.2,3.2078]
[1756561656958,0.2826,4345.0,4344.2,3.2078]
[1756561657356,3.2078,4345.1,4344.2,3.2078]
[1756561657552,3.2078,4345.1,4344.1,0.249]
[1756561657753,0.2825,4344.8,4344.2,0.249]
[1756561657953,0.4716,4344.1,4343.7,3.2078]
[1756561658149,0.1891,4343.9,4343.8,0.249]
[1756561658361,0.4716,4343.9,4343.8,0.249]
[1756561658556,3.2078,4345.1,4343.8,41.049]
[1756561658755,0.2825,4345.0,4343.8,41.049]
[1756561659261,3.2078,4345.1,4343.8,41.049]
[1756561659757,0.2825,4345.0,4343.8,41.049]
[1756561659957,3.2078,4345.1,4343.8,41.049]
[1756561660361,0.2825,4345.0,4343.8,41.049]
[1756561660561,0.2825,4344.8,4343.8,41.049]
[1756561661050,3.2078,4345.1,4343.8,41.049]
[1756561661455,0.2825,4345.0,4343.8,41.049]
[1756561661856,3.2078,4345.1,4343.8,41.049]
[1756561662052,0.2825,4345.0,4343.8,41.049]
[1756561662261,3.2078,4345.1,4343.8,41.049]
[1756561662461,0.2825,4344.8,4343.8,41.049]
[1756561662758,3.2078,4345.1,4343.8,41.049]
[1756561662759,0.2825,4345.0,4343.8,41.049]
[1756561662955,0.2825,4344.9,4343.8,41.049]
[1756561663155,0.2825,4344.8,4343.8,41.049]
[1756561664163,0.1891,4345.1,4344.2,3.6221]
[1756561664357,0.1891,4345.1,4344.3,0.249]
[1756561665255,3.2078,4345.6,4344.7,3.2078]
[1756561665256,3.4903,4345.6,4344.7,3.2078]
[1756561665451,34.78419414,4347.6,4345.3,3.2078]
[1756561665452,0.2825,4346.1,4345.3,3.2078]
[1756561665651,0.2825,4346.1,4345.4,0.248]
[1756561666157,3.2078,4346.2,4345.4,0.248]
[1756561666354,0.2825,4346.5,4345.4,0.66218]
[1756561666557,0.2825,4346.5,4345.5,0.41417]
[1756561666757,0.2825,4346.5,4345.8,3.2078]
[1756561667055,0.2825,4346.5,4345.9,0.249]
[1756561667256,3.2078,4346.7,4345.9,0.249]
[1756561667462,3.2078,4346.7,4346.0,0.41412]
[1756561668056,0.2825,4346.9,4346.0,0.41412]
[1756561668057,0.2825,4346.9,4346.3,3.2078]
[1756561668256,3.2078,4347.2,4346.4,0.248]
[1756561668460,0.1891,4346.5,4346.4,0.248]
[1756561668657,0.4716,4346.5,4346.4,0.248]
[1756561669656,0.4716,4346.5,4346.3,3.2078]
[1756561669657,0.4716,4346.4,4346.3,3.2078]
[1756561669853,0.4716,4346.4,4346.3,3.4558]
[1756561670051,3.2078,4347.2,4346.3,3.4558]
[1756561670556,3.2078,4347.2,4345.1,33.154]
[1756561670557,0.1891,4346.5,4346.4,0.248]
[1756561670763,0.4716,4346.5,4346.4,0.248]
[1756561671556,0.1891,4346.0,4345.9,3.2078]
[1756561671863,0.2825,4347.1,4345.9,44.2568]
[1756561672056,0.2825,4347.0,4345.9,44.2568]
[1756561672359,0.1891,4346.0,4345.9,44.2568]
[1756561672564,0.4716,4346.0,4345.9,41.049]
[1756561672864,0.2825,4347.1,4345.9,41.049]
[1756561673067,0.23007,4347.1,4345.9,41.049]
[1756561673259,0.4716,4346.0,4345.9,40.8]
[1756561673452,0.4716,4346.0,4345.9,0.249]
[1756561674257,0.4716,4346.0,4345.4,40.8]
[1756561674462,3.2078,4346.6,4345.5,0.249]
[1756561674762,0.2825,4346.5,4345.5,0.249]
[1756561674959,0.2825,4346.5,4345.4,40.8]
[1756561675167,0.4716,4345.5,4345.4,40.8]
[1756561675361,0.4716,4345.5,4345.4,41.048]
[1756561675556,0.4716,4345.5,4345.3,3.2078]
[1756561675861,0.4716,4345.4,4345.3,3.2078]
[1756561676366,0.2825,4345.4,4345.3,3.4558]
[1756561678960,3.2078,4346.1,4345.3,3.4558]
[1756561679260,0.2825,4346.0,4345.3,3.4558]
[1756561679463,0.4716,4345.4,4345.3,3.4558]
[1756561679656,0.4716,4345.4,4345.3,3.2078]
[1756561679862,0.4716,4345.4,4345.3,3.4558]
[1756561680466,0.4716,4344.6,4344.5,3.2078]
[1756561680663,0.4716,4344.6,4344.5,3.4558]
[1756561681070,3.2078,4345.6,4344.5,3.4558]
[1756561681259,0.2825,4345.5,4344.5,3.4558]
[1756561681564,0.4716,4344.6,4344.5,3.2078]
[1756561681763,0.1891,4344.1,4344.0,40.8]
[1756561681961,0.4716,4344.1,4344.0,41.048]
[1756561682158,0.2825,4344.1,4344.0,41.048]
[1756561682363,0.2825,4344.1,4344.0,0.248]
[1756561682764,3.2078,4345.1,4344.0,0.248]
[1756561683058,0.2825,4345.0,4344.0,0.248]
[1756561683264,0.2825,4345.0,4344.0,44.2558]
[1756561683666,3.2078,4345.1,4344.0,44.2558]
[1756561683863,0.2825,4344.9,4344.0,44.2558]
[1756561684163,0.2825,4344.9,4344.1,0.23016999]
[1756561684360,0.2825,4344.9,4344.2,0.247]
[1756561686671,0.2825,4344.9,4344.2,0.66129]
[1756561686970,3.2078,4345.1,4344.2,0.247]
[1756561687170,3.2078,4345.1,4344.7,0.41424]
[1756561687364,3.2078,4345.1,4344.8,0.247]
[1756561687764,3.2078,4345.1,4344.8,0.66124]
[1756561688268,0.498,4345.7,4345.1,0.41421]
[1756561688465,3.2078,4346.2,4345.2,3.4548]
[1756561688669,3.2078,4346.2,4345.8,0.41414]
[1756561688870,3.2078,4346.2,4345.9,41.047]
[1756561689068,3.2078,4346.2,4345.9,41.46113]
[1756561689374,3.2078,4346.2,4346.0,0.41412]
[1756561689770,0.304,4346.6,4345.9,44.2548]
[1756561690166,0.304,4346.6,4346.0,0.41412]
[1756561690367,0.304,4346.6,4345.9,44.2548]
[1756561690571,3.5118,4347.0,4346.4,3.2078]
[1756561690767,0.304,4347.3,4346.5,0.66108]
[1756561692070,0.304,4347.3,4346.7,0.41405]